[Event "WYCC 2018 G16"]
[Site "Halkidiki"]
[Date "2018.10.20"]
[Round "1"]
[White "Maltsevskaya, Aleksandra"]
[Black "Esadze, Tamari"]
[Result "1-0"]
[ECO "B90"]
[WhiteElo "2290"]
[BlackElo "1911"]
[Annotator "NA"]
[PlyCount "83"]
[EventDate "2018.10.20"]
[EventType "swiss"]
[EventCountry "GRE"]
[SourceTitle "playchess.com"]
[Source "ChessBase"]
[SourceQuality "1"]
[TimeControl "40/5400+30:1800+30"]

1. e4 {[%emt 0:00:00]} c5 {[%emt 0:00:00]} 2. Nf3 {[%emt 0:00:00]} d6 {[%emt 0:00:00]} 3. d4 {[%emt 0:00:00]} cxd4 {[%emt 0:00:00]} 4. Nxd4 {[%emt 0:00:00]} Nf6 {[%emt 0:00:00]} 5. Nc3 {[%emt 0:00:08]} a6 {[%emt 0:00:00]} 6. h3 {[%emt 0:00:10]} e5 {[%emt 0:00:15]} 7. Nde2 {[%emt 0:00:08]} Be6 {[%emt 0:00:14]} 8. g3 {[%emt 0:03:03]} Be7 {[%emt 0:01:26]} 9. Bg2 {[%emt 0:00:07]} Nbd7 {[%emt 0:00:50]} 10. a4 {[%emt 0:00:49]} O-O {[%emt 0:00:32]} 11. O-O {[%emt 0:04:09]} Rc8 {[%emt 0:01:23] B91: Sicilian Najdorf: 6 g3} (11... Qc7 12. Be3 Rfc8 13. g4 h6 14. Qd2 Bc4 15. Rfc1 b5 16. axb5 axb5 17. Rxa8 Rxa8 18. b3 b4 19. Na4 {½-½ (74) Huschenbeth,N (2601)-Navara,D (2732) Czech Republic 2018}) 12. b3 {[%emt 0:08:01]} Qc7 {[%emt 0:07:24]} 13. Ra2 {[%emt 0:05:18]} h6 $146 {[%emt 0:06:51]} ({Predecessor:} 13... Rfe8 14. Be3 h5 15. f4 exf4 16. gxf4 Nf8 17. f5 Bd7 18. Bd4 Qd8 19. Nf4 {1-0 (34) Galyamov,V (2198)-Alikulov,E (2283) Tashkent 2012}) 14. a5 {[%emt 0:02:07]} Nc5 {[%emt 0:06:26]} 15. Be3 {[%emt 0:05:03]} Qc6 {[%emt 0:03:44]} 16. Nd5 {[%emt 0:04:32]} Bxd5 {[%emt 0:08:19]} 17. exd5 {[%emt 0:00:09]} Qc7 {[%emt 0:02:11]} 18. Kh2 {[%emt 0:04:18]} Nh7 {[%emt 0:03:30]} 19. c4 {[%emt 0:03:50]} Nd7 {[%emt 0:14:51]} 20. f4 {[%emt 0:04:09]} exf4 {[%emt 0:01:42]} 21. gxf4 {[%emt 0:04:13]} Rfe8 {[%emt 0:01:38]} 22. Nd4 $16 {[%emt 0:01:11]} Bf6 {[%emt 0:02:03]} 23. Bg1 {[%emt 0:03:48]} Nc5 {[%emt 0:10:12]} 24. b4 {[%emt 0:05:50]} Ne4 {[%emt 0:02:30]} 25. Rc2 {[%emt 0:00:07]} Bxd4 {[%emt 0:07:25]} 26. Bxd4 {[%emt 0:02:41]} Qd7 {[%emt 0:03:02]} 27. Bf3 {[%emt 0:05:03]} Nef6 {[%emt 0:07:29]} 28. Qd3 {[%emt 0:03:53]} Kh8 {[%emt 0:02:21]} 29. Rg1 {[%emt 0:00:33]} Rg8 {[%emt 0:00:24]} 30. Rcg2 {[%emt 0:03:02]} Rce8 {[%emt 0:00:33]} 31. c5 {[%emt 0:03:28]} Qd8 {[%emt 0:04:13]} 32. Qc3 {[%emt 0:06:28]} Qe7 {[%emt 0:01:14]} 33. cxd6 {[%emt 0:04:27]} Qxd6 {[%emt 0:00:03]} 34. Be5 {[%emt 0:00:05]} Qd8 {[%emt 0:00:36]} 35. d6 {[%emt 0:00:28]} b6 {[%emt 0:01:10]} 36. Qc7 {[%emt 0:08:54]} bxa5 {[%emt 0:01:29]} 37. bxa5 {[%emt 0:00:07]} Ref8 {[%emt 0:01:17]} 38. Bc6 {[%emt 0:02:01]} Nh5 {[%emt 0:01:00]} 39. Qxd8 {[%emt 0:01:04]} Rxd8 {[%emt 0:00:04]} 40. d7 {[%emt 0:00:00]} N7f6 {[%emt 0:00:00]} 41. Rd2 {[%emt 0:00:43]} Rdf8 {[%emt 0:07:15]} 42. Bc7 {[%emt 0:00:21]} 1-0

[Event "WYCC 2018 G16"]
[Site "Halkidiki"]
[Date "2018.10.20"]
[Round "1"]
[White "Muetsch, Annmarie"]
[Black "Xing, Ashley"]
[Result "1-0"]
[ECO "C45"]
[WhiteElo "2206"]
[BlackElo "1889"]
[Annotator "NA"]
[PlyCount "41"]
[EventDate "2018.10.20"]
[EventType "swiss"]
[EventCountry "GRE"]
[SourceTitle "playchess.com"]
[Source "ChessBase"]
[SourceQuality "1"]
[TimeControl "40/5400+30:1800+30"]

1. e4 {[%emt 0:00:00]} e5 {[%emt 0:00:00]} 2. Nf3 {[%emt 0:00:00]} Nc6 {[%emt 0:00:00]} 3. d4 {[%emt 0:00:00]} exd4 {[%emt 0:00:00]} 4. Nxd4 {[%emt 0:00:00]} Bc5 {[%emt 0:00:17]} 5. Nb3 {[%emt 0:00:03]} Bb6 {[%emt 0:01:12]} 6. Nc3 {[%emt 0:00:06]} Nge7 {[%emt 0:05:04]} 7. Bf4 {[%emt 0:00:26]} d6 {[%emt 0:01:39]} 8. Qd2 {[%emt 0:00:45]} Be6 {[%emt 0:02:41]} 9. O-O-O {[%emt 0:02:40]} O-O {[%emt 0:08:09]} 10. Kb1 {[%emt 0:02:14]} Ng6 {[%emt 0:08:27]} 11. Bg3 {[%emt 0:02:45]} f5 $14 {[%emt 0:09:44]} 12. f4 {[%emt 0:13:22]} fxe4 {[%emt 0:10:14]} 13. Nxe4 {[%emt 0:00:59]} Kh8 {[%emt 0:05:21]} 14. Ng5 {[%emt 0:03:29]} Bg4 {[%emt 0:08:05]} 15. Re1 {[%emt 0:03:36]} Qf6 {[%emt 0:04:28]} 16. h3 {[%emt 0:05:51]} Bd7 {[%emt 0:05:04]} 17. Bc4 {[%emt 0:16:29]} Nd4 {[%emt 0:13:45]} 18. Nxd4 {[%emt 0:02:14]} Qxd4 {[%emt 0:02:15]} 19. Qxd4 {[%emt 0:00:17]} Bxd4 {[%emt 0:00:03]} 20. Nf7+ {[%emt 0:00:31]} Kg8 {[%emt 0:00:39]} 21. Ne5+ {[%emt 0:04:45]} 1-0

[Event "WYCC 2018 G16"]
[Site "Halkidiki"]
[Date "2018.10.20"]
[Round "1"]
[White "Makhija, Aashna"]
[Black "Skaslien, Ingrid"]
[Result "1-0"]
[ECO "B07"]
[WhiteElo "2197"]
[BlackElo "1885"]
[Annotator "NA"]
[PlyCount "63"]
[EventDate "2018.10.20"]
[EventType "swiss"]
[EventCountry "GRE"]
[SourceTitle "playchess.com"]
[Source "ChessBase"]
[SourceQuality "1"]
[TimeControl "40/5400+30:1800+30"]

1. e4 {[%emt 0:00:00]} d6 {[%emt 0:00:00]} 2. d4 {[%emt 0:00:11]} Nf6 {[%emt 0:00:13]} 3. Nc3 {[%emt 0:00:24]} Nbd7 {[%emt 0:00:24]} 4. Nf3 {[%emt 0:00:54]} e5 {[%emt 0:00:26]} 5. Bc4 {[%emt 0:00:37]} Be7 {[%emt 0:00:24]} 6. a4 {[%emt 0:00:40]} c6 {[%emt 0:00:31]} 7. O-O {[%emt 0:01:56]} Qc7 {[%emt 0:00:52]} 8. Re1 {[%emt 0:05:13]} h6 {[%emt 0:01:11]} 9. Ba2 {[%emt 0:03:59]} Nf8 {[%emt 0:05:30]} 10. Qd3 {[%emt 0:12:15]} Ng6 {[%emt 0:14:15]} 11. h3 {[%emt 0:04:27]} a5 {[%emt 0:17:44]} 12. Be3 {[%emt 0:04:21]} O-O {[%emt 0:09:20]} 13. Rad1 {[%emt 0:05:58]} Nh5 {[%emt 0:03:48]} 14. Qc4 {[%emt 0:11:47]} Nhf4 {[%emt 0:12:44]} 15. Bxf4 {[%emt 0:21:22]} Nxf4 {[%emt 0:00:33]} 16. dxe5 {[%emt 0:07:57]} dxe5 {[%emt 0:01:01]} 17. Nd5 {[%emt 0:01:02]} Nxd5 {[%emt 0:03:42]} 18. exd5 {[%emt 0:00:11]} Bd6 {[%emt 0:10:54]} 19. Qe4 {[%emt 0:08:27]} Re8 {[%emt 0:04:49]} 20. Nh4 {[%emt 0:03:09]} Bd7 {[%emt 0:06:52]} 21. dxc6 {[%emt 0:02:57]} Bxc6 {[%emt 0:00:31]} 22. Qg6 {[%emt 0:01:48]} Bf8 {[%emt 0:01:34]} 23. Nf5 {[%emt 0:00:19]} Kh8 {[%emt 0:01:31]} 24. Bxf7 {[%emt 0:00:26]} Red8 {[%emt 0:00:29]} 25. b3 {[%emt 0:01:15]} Rxd1 {[%emt 0:01:06]} 26. Rxd1 {[%emt 0:00:01]} Be4 {[%emt 0:00:09]} 27. Bc4 {[%emt 0:01:11]} Bxc2 {[%emt 0:01:05]} 28. Qe6 {[%emt 0:00:27]} Bb4 {[%emt 0:01:30]} 29. Rd7 {[%emt 0:00:18]} Bxf5 {[%emt 0:00:23]} 30. Qxf5 {[%emt 0:00:32]} Qc6 {[%emt 0:00:46]} 31. Qg4 {[%emt 0:00:41]} Rf8 {[%emt 0:00:37]} 32. Qxg7# {[%emt 0:00:07]} 1-0

[Event "WYCC 2018 G16"]
[Site "Halkidiki"]
[Date "2018.10.20"]
[Round "1"]
[White "Yurasova, Daria"]
[Black "Tejasvi M"]
[Result "1-0"]
[ECO "A14"]
[WhiteElo "2193"]
[BlackElo "1869"]
[Annotator "NA"]
[PlyCount "97"]
[EventDate "2018.10.20"]
[EventType "swiss"]
[EventCountry "GRE"]
[SourceTitle "playchess.com"]
[Source "ChessBase"]
[SourceQuality "1"]
[TimeControl "40/5400+30:1800+30"]

1. Nf3 {[%emt 0:00:00]} Nf6 {[%emt 0:00:07]} 2. c4 {[%emt 0:00:00]} e6 {[%emt 0:00:07]} 3. g3 {[%emt 0:00:00]} d5 {[%emt 0:00:08]} 4. Bg2 {[%emt 0:00:00]} Be7 {[%emt 0:01:52]} 5. O-O {[%emt 0:00:12]} O-O {[%emt 0:00:21]} 6. b3 {[%emt 0:00:08]} c5 {[%emt 0:03:25]} 7. cxd5 {[%emt 0:00:17]} exd5 {[%emt 0:00:12]} 8. d4 {[%emt 0:07:51]} b6 {[%emt 0:07:45]} 9. dxc5 {[%emt 0:04:45]} bxc5 {[%emt 0:00:26]} 10. Nc3 {[%emt 0:02:30]} Bb7 {[%emt 0:10:17]} 11. Ba3 {[%emt 0:03:55]} Qa5 {[%emt 0:10:30]} 12. Na4 {[%emt 0:09:40]} Bc6 {[%emt 0:09:24]} 13. Rc1 {[%emt 0:18:39]} Nbd7 $14 {[%emt 0:17:59]} 14. Nd4 {[%emt 0:04:40]} Bxa4 {[%emt 0:05:52]} 15. bxa4 {[%emt 0:00:36]} cxd4 {[%emt 0:05:19]} 16. Bxe7 {[%emt 0:00:09]} Rfe8 {[%emt 0:00:58]} 17. Ba3 {[%emt 0:05:49]} Nb6 {[%emt 0:03:39]} 18. Bb2 {[%emt 0:03:12]} Nxa4 {[%emt 0:04:21]} 19. Bxd4 {[%emt 0:01:48]} Ne4 {[%emt 0:00:55]} 20. e3 {[%emt 0:09:03]} Rab8 {[%emt 0:10:42]} 21. Qg4 {[%emt 0:03:31]} g6 {[%emt 0:04:39]} 22. Qf4 {[%emt 0:02:52]} Nac3 {[%emt 0:00:53]} 23. Rc2 {[%emt 0:02:43]} Nb5 {[%emt 0:00:48]} 24. Be5 {[%emt 0:01:21]} g5 {[%emt 0:00:28]} 25. Qf5 {[%emt 0:00:29]} Nbd6 {[%emt 0:00:40]} 26. Bxd6 {[%emt 0:00:20]} Nxd6 {[%emt 0:00:04]} 27. Qxg5+ {[%emt 0:00:05]} Kh8 {[%emt 0:00:04]} 28. Qf6+ {[%emt 0:00:20]} Kg8 {[%emt 0:00:10]} 29. Qxd6 {[%emt 0:00:06]} Rb6 {[%emt 0:00:26]} 30. Qxd5 {[%emt 0:00:11]} Qxd5 {[%emt 0:00:03]} 31. Bxd5 {[%emt 0:00:08]} Rd8 {[%emt 0:00:20]} 32. Bb3 {[%emt 0:00:05]} Rb7 {[%emt 0:00:06]} 33. Rfc1 {[%emt 0:00:09]} Rdd7 {[%emt 0:00:08]} 34. Rc5 {[%emt 0:00:17]} Kg7 {[%emt 0:00:08]} 35. Rg5+ {[%emt 0:00:21]} Kf6 {[%emt 0:00:06]} 36. Rcc5 {[%emt 0:00:14]} Ke7 {[%emt 0:00:15]} 37. Rgf5 {[%emt 0:00:09]} Kf8 {[%emt 0:00:16]} 38. Rc8+ {[%emt 0:00:19]} Kg7 {[%emt 0:00:05]} 39. Rg5+ {[%emt 0:00:07]} Kf6 {[%emt 0:00:06]} 40. Rh5 {[%emt 0:00:00]} Kg7 {[%emt 0:00:00]} 41. Bc2 {[%emt 0:00:35]} h6 {[%emt 0:00:13]} 42. Rc6 {[%emt 0:00:09]} Rd2 {[%emt 0:00:17]} 43. Bb3 {[%emt 0:00:14]} a5 {[%emt 0:00:19]} 44. Rxa5 {[%emt 0:00:08]} Rbd7 {[%emt 0:00:07]} 45. Raa6 {[%emt 0:00:08]} Rb2 {[%emt 0:00:19]} 46. Rxh6 {[%emt 0:00:09]} Rdd2 {[%emt 0:00:06]} 47. Rhf6 {[%emt 0:00:07]} Re2 {[%emt 0:00:11]} 48. Rxf7+ {[%emt 0:00:08]} Kh8 {[%emt 0:00:07]} 49. Ra8# {[%emt 0:00:06]} 1-0

[Event "WYCC 2018 G16"]
[Site "Halkidiki"]
[Date "2018.10.20"]
[Round "1"]
[White "Hilario, Aleyla"]
[Black "Kvendseth, Thyra"]
[Result "1-0"]
[ECO "E62"]
[WhiteElo "2175"]
[BlackElo "1854"]
[Annotator "NA"]
[PlyCount "51"]
[EventDate "2018.10.20"]
[EventType "swiss"]
[EventCountry "GRE"]
[SourceTitle "playchess.com"]
[Source "ChessBase"]
[SourceQuality "1"]
[TimeControl "40/5400+30:1800+30"]

1. d4 {[%emt 0:00:00]} Nf6 {[%emt 0:00:00]} 2. c4 {[%emt 0:00:00]} g6 {[%emt 0:00:00]} 3. Nf3 {[%emt 0:00:00]} Bg7 {[%emt 0:00:00]} 4. g3 {[%emt 0:00:01]} O-O {[%emt 0:00:02]} 5. Bg2 {[%emt 0:00:07]} d6 {[%emt 0:00:34]} 6. O-O {[%emt 0:00:16]} Nc6 {[%emt 0:00:59]} 7. Nc3 {[%emt 0:00:15]} e5 {[%emt 0:07:10]} 8. d5 {[%emt 0:00:33]} Ne7 {[%emt 0:00:25]} 9. e4 {[%emt 0:06:36]} Ne8 {[%emt 0:06:47]} 10. Ne1 {[%emt 0:16:08]} f5 {[%emt 0:03:07]} 11. f4 {[%emt 0:01:56]} exf4 $14 {[%emt 0:07:15]} 12. Bxf4 {[%emt 0:00:17]} Nf6 {[%emt 0:01:28]} 13. exf5 {[%emt 0:13:50]} Nxf5 {[%emt 0:09:06]} 14. Nf3 {[%emt 0:04:40]} Ng4 {[%emt 0:06:34]} 15. Qd2 {[%emt 0:01:19]} c6 {[%emt 0:15:44]} 16. Rae1 {[%emt 0:01:41]} Bd7 {[%emt 0:08:53]} 17. Kh1 {[%emt 0:08:37]} Qc7 {[%emt 0:10:51]} 18. c5 {[%emt 0:07:57]} Rad8 {[%emt 0:07:32]} 19. Ne4 {[%emt 0:05:47]} cxd5 {[%emt 0:02:37]} 20. Qxd5+ {[%emt 0:00:17]} Kh8 {[%emt 0:00:11]} 21. Nxd6 {[%emt 0:01:55]} Bc6 {[%emt 0:00:32]} 22. Qb3 {[%emt 0:05:25]} Nd4 {[%emt 0:02:49]} 23. Nxd4 {[%emt 0:01:07]} Bxd4 {[%emt 0:01:11]} 24. Ne4 {[%emt 0:13:27]} Qg7 {[%emt 0:01:49]} 25. Ng5 {[%emt 0:05:15]} b6 {[%emt 0:03:55]} 26. Bxc6 {[%emt 0:00:57]} 1-0

[Event "WYCC 2018 G16"]
[Site "Halkidiki"]
[Date "2018.10.20"]
[Round "1"]
[White "Serikbay, Assel"]
[Black "Pecorini, Angie"]
[Result "1-0"]
[ECO "D71"]
[WhiteElo "2166"]
[BlackElo "1847"]
[Annotator "NA"]
[PlyCount "73"]
[EventDate "2018.10.20"]
[EventType "swiss"]
[EventCountry "GRE"]
[SourceTitle "playchess.com"]
[Source "ChessBase"]
[SourceQuality "1"]
[TimeControl "40/5400+30:1800+30"]

1. d4 {[%emt 0:00:00]} Nf6 {[%emt 0:00:00]} 2. c4 {[%emt 0:00:00]} g6 {[%emt 0:00:00]} 3. g3 {[%emt 0:00:00]} Bg7 {[%emt 0:00:00]} 4. Bg2 {[%emt 0:00:00]} c6 {[%emt 0:00:45]} 5. Nf3 {[%emt 0:00:28]} O-O {[%emt 0:00:07]} 6. O-O {[%emt 0:00:13]} d5 {[%emt 0:00:05]} 7. b3 {[%emt 0:00:33]} Re8 {[%emt 0:03:24]} 8. Nc3 {[%emt 0:03:05]} Bf5 {[%emt 0:01:23]} 9. Bb2 {[%emt 0:01:12]} Ne4 {[%emt 0:04:10]} 10. Rc1 {[%emt 0:02:56]} a5 {[%emt 0:09:10]} 11. Nh4 {[%emt 0:10:56]} Nxc3 {[%emt 0:16:28]} 12. Bxc3 {[%emt 0:00:07]} Be6 {[%emt 0:02:20]} 13. Ba1 {[%emt 0:06:37]} f5 {[%emt 0:15:11]} 14. Nf3 {[%emt 0:05:57]} h6 {[%emt 0:04:34]} 15. h4 {[%emt 0:05:27]} Nd7 {[%emt 0:03:37]} 16. Qd3 {[%emt 0:06:12]} Qb8 {[%emt 0:04:04]} 17. Bh3 {[%emt 0:05:28]} Nf6 $14 {[%emt 0:03:54]} 18. Ne5 {[%emt 0:15:06]} Kh7 {[%emt 0:00:38]} 19. f3 {[%emt 0:03:36]} Nh5 {[%emt 0:04:00]} 20. Kg2 {[%emt 0:02:02]} Bxe5 {[%emt 0:03:17]} 21. dxe5 {[%emt 0:00:05]} dxc4 {[%emt 0:02:42]} 22. bxc4 {[%emt 0:00:12]} Qc8 {[%emt 0:06:37]} 23. Rg1 {[%emt 0:07:19]} f4 {[%emt 0:04:05]} 24. g4 {[%emt 0:00:32]} Ng3 {[%emt 0:01:15]} 25. e3 {[%emt 0:09:45]} Rd8 {[%emt 0:00:31]} 26. Qc2 {[%emt 0:00:11]} h5 {[%emt 0:05:42]} 27. exf4 {[%emt 0:04:59]} hxg4 {[%emt 0:00:11]} 28. fxg4 {[%emt 0:03:01]} Bxg4 {[%emt 0:00:21]} 29. Kxg3 {[%emt 0:01:24]} Bxh3 {[%emt 0:00:05]} 30. Qe2 {[%emt 0:04:13]} Bf5 {[%emt 0:03:13]} 31. h5 {[%emt 0:01:58]} Rd3+ {[%emt 0:00:27]} 32. Kf2 {[%emt 0:00:04]} Qd8 {[%emt 0:01:28]} 33. hxg6+ {[%emt 0:00:23]} Bxg6 {[%emt 0:02:00]} 34. Rh1+ {[%emt 0:00:21]} Kg8 {[%emt 0:00:38]} 35. e6 {[%emt 0:00:35]} Rd4 {[%emt 0:00:33]} 36. Rh8+ {[%emt 0:01:45]} Kxh8 {[%emt 0:00:13]} 37. Qe5+ {[%emt 0:00:02]} 1-0

[Event "WYCC 2018 G16"]
[Site "Halkidiki"]
[Date "2018.10.20"]
[Round "1"]
[White "Peycheva, Gergana"]
[Black "Hoesley, Aria"]
[Result "1-0"]
[ECO "E10"]
[WhiteElo "2152"]
[BlackElo "1831"]
[Annotator "NA"]
[PlyCount "83"]
[EventDate "2018.10.20"]
[EventType "swiss"]
[EventCountry "GRE"]
[SourceTitle "playchess.com"]
[Source "ChessBase"]
[SourceQuality "1"]
[TimeControl "40/5400+30:1800+30"]

1. d4 {[%emt 0:00:00]} Nf6 {[%emt 0:00:00]} 2. c4 {[%emt 0:00:19]} e6 {[%emt 0:00:00]} 3. Nf3 {[%emt 0:00:38]} c5 {[%emt 0:00:25]} 4. d5 {[%emt 0:02:57]} b5 {[%emt 0:01:17]} 5. dxe6 {[%emt 0:04:42]} fxe6 {[%emt 0:00:19]} 6. cxb5 {[%emt 0:01:50]} d5 {[%emt 0:00:42]} 7. Bf4 {[%emt 0:02:35]} Bd6 {[%emt 0:02:46]} 8. Bxd6 {[%emt 0:02:09]} Qxd6 {[%emt 0:00:03]} 9. e3 {[%emt 0:01:33]} O-O {[%emt 0:01:20]} 10. Nc3 {[%emt 0:02:49]} Qe7 {[%emt 0:07:57]} 11. Be2 {[%emt 0:03:46]} Bb7 {[%emt 0:00:32]} 12. O-O {[%emt 0:02:04]} Nbd7 {[%emt 0:02:01]} 13. Qb3 {[%emt 0:05:14]} e5 {[%emt 0:08:38]} 14. e4 {[%emt 0:04:43]} c4 {[%emt 0:01:29]} 15. Qd1 {[%emt 0:03:58]} Nb6 {[%emt 0:11:52]} 16. exd5 {[%emt 0:02:06]} Rad8 {[%emt 0:02:41]} 17. Re1 {[%emt 0:05:13]} Nfxd5 {[%emt 0:04:16]} 18. Nxd5 $16 {[%emt 0:01:01]} Bxd5 {[%emt 0:02:04]} 19. Qc1 {[%emt 0:05:58]} e4 {[%emt 0:14:01]} 20. Qe3 {[%emt 0:04:46]} Qf6 {[%emt 0:04:11]} 21. Nd4 {[%emt 0:05:32]} Kh8 {[%emt 0:01:42]} 22. Rac1 {[%emt 0:04:20]} Rd6 {[%emt 0:12:58]} 23. Bf1 {[%emt 0:06:26]} Ba8 {[%emt 0:04:11]} 24. Nc6 {[%emt 0:02:38]} Bxc6 {[%emt 0:00:30]} 25. bxc6 {[%emt 0:00:05]} Rxc6 {[%emt 0:00:11]} 26. Rc2 {[%emt 0:01:53]} Re8 {[%emt 0:02:12]} 27. h3 {[%emt 0:04:54]} Rcc8 {[%emt 0:01:58]} 28. Qc1 {[%emt 0:02:37]} Qf7 {[%emt 0:02:01]} 29. Rc3 {[%emt 0:01:54]} Qd5 {[%emt 0:02:36]} 30. Qc2 {[%emt 0:02:05]} h6 {[%emt 0:03:53]} 31. Rce3 {[%emt 0:01:28]} Qa5 {[%emt 0:00:32]} 32. Qb1 {[%emt 0:02:25]} Na4 {[%emt 0:02:44]} 33. Rxe4 {[%emt 0:02:30]} Rxe4 {[%emt 0:00:08]} 34. Rxe4 {[%emt 0:02:02]} Qb4 {[%emt 0:01:31]} 35. b3 {[%emt 0:02:17]} Nc3 {[%emt 0:01:22]} 36. Qe1 {[%emt 0:00:06]} Nxa2 {[%emt 0:00:20]} 37. Re8+ {[%emt 0:00:42]} Rxe8 {[%emt 0:00:02]} 38. Qxe8+ {[%emt 0:00:04]} Kh7 {[%emt 0:00:07]} 39. Bxc4 {[%emt 0:00:10]} Qd6 {[%emt 0:01:43]} 40. Bg8+ {[%emt 0:00:00]} Kh8 {[%emt 0:00:00]} 41. Bf7+ {[%emt 0:00:20]} Kh7 {[%emt 0:00:23]} 42. Qg8# {[%emt 0:00:04]} 1-0

[Event "WYCC 2018 G16"]
[Site "Halkidiki"]
[Date "2018.10.20"]
[Round "1"]
[White "Cervantes Landeiro, Thalia"]
[Black "Mikic, Ivana"]
[Result "1-0"]
[ECO "E21"]
[WhiteElo "2129"]
[BlackElo "1783"]
[Annotator "NA"]
[PlyCount "79"]
[EventDate "2018.10.20"]
[EventType "swiss"]
[EventCountry "GRE"]
[SourceTitle "playchess.com"]
[Source "ChessBase"]
[SourceQuality "1"]
[TimeControl "40/5400+30:1800+30"]

1. d4 {[%emt 0:00:00]} Nf6 {[%emt 0:00:00]} 2. c4 {[%emt 0:00:00]} e6 {[%emt 0:00:04]} 3. Nc3 {[%emt 0:00:00]} Bb4 {[%emt 0:00:13]} 4. Nf3 {[%emt 0:00:00]} b6 {[%emt 0:00:22]} 5. e3 {[%emt 0:00:00]} O-O {[%emt 0:00:07]} 6. Bd3 {[%emt 0:00:01]} d5 {[%emt 0:00:53]} 7. cxd5 {[%emt 0:00:20]} exd5 {[%emt 0:00:43]} 8. O-O {[%emt 0:00:12]} Ba6 {[%emt 0:05:55]} 9. Bxa6 {[%emt 0:04:26]} Nxa6 {[%emt 0:00:11]} 10. Qd3 {[%emt 0:00:10]} Nb8 {[%emt 0:02:08]} 11. a3 {[%emt 0:00:46]} Bxc3 $11 {[%emt 0:08:11]} 12. bxc3 {[%emt 0:02:11]} Nbd7 {[%emt 0:03:10]} 13. c4 {[%emt 0:06:41]} dxc4 {[%emt 0:05:51]} 14. Qxc4 {[%emt 0:03:36]} c5 {[%emt 0:03:38]} 15. Bb2 {[%emt 0:05:16]} Qe7 {[%emt 0:01:59]} 16. dxc5 {[%emt 0:08:10]} Nxc5 {[%emt 0:01:16]} 17. Qh4 {[%emt 0:04:43]} Nd5 {[%emt 0:06:20]} 18. Qg3 {[%emt 0:06:06]} f6 {[%emt 0:07:15]} 19. Rad1 {[%emt 0:05:43]} Rad8 {[%emt 0:04:45]} 20. Nd4 {[%emt 0:02:55]} Qc7 {[%emt 0:08:46]} 21. Qg4 {[%emt 0:07:24]} Rfe8 {[%emt 0:03:36]} 22. Nf5 {[%emt 0:03:35]} Re4 {[%emt 0:02:37]} 23. Qf3 {[%emt 0:20:42]} Qf7 {[%emt 0:14:24]} 24. Bd4 {[%emt 0:01:14]} Ree8 {[%emt 0:02:17]} 25. Bxc5 {[%emt 0:01:09]} bxc5 {[%emt 0:00:09]} 26. e4 {[%emt 0:00:14]} Nb6 {[%emt 0:01:37]} 27. Nd6 {[%emt 0:01:30]} Rxd6 {[%emt 0:00:34]} 28. Rxd6 {[%emt 0:00:10]} Qe7 {[%emt 0:00:06]} 29. Rc6 {[%emt 0:04:02]} c4 {[%emt 0:01:03]} 30. Re1 {[%emt 0:04:01]} Qd7 {[%emt 0:01:19]} 31. Rc5 {[%emt 0:00:37]} Qd4 {[%emt 0:06:23]} 32. Qe3 {[%emt 0:01:54]} Qb2 {[%emt 0:01:32]} 33. a4 {[%emt 0:03:18]} Rd8 {[%emt 0:02:10]} 34. a5 {[%emt 0:01:16]} Rd3 {[%emt 0:00:56]} 35. Qf4 {[%emt 0:03:06]} Qb4 {[%emt 0:00:44]} 36. Qb8+ {[%emt 0:00:15]} Kf7 {[%emt 0:00:10]} 37. Rc7+ {[%emt 0:00:22]} Kg6 {[%emt 0:00:31]} 38. Rf1 {[%emt 0:00:19]} Qxa5 {[%emt 0:01:00]} 39. Qf8 {[%emt 0:01:43]} Nd7 {[%emt 0:01:20]} 40. Qe8+ {[%emt 0:00:00]} 1-0